fUSD/lending_fUSD_20240808
["ID","MTS","AMOUNT","RATE_DAILY","PERIOD"]
[334466822,1723132247374,-5935.1,0.00024988,5]
[334466823,1723132247387,-388.501365,0.00024988,5]
[334466829,1723132273356,161.64,0.0002499,120]
[334466830,1723132273709,152.0,0.0002499,120]
[334466831,1723132274503,152.0,0.0002498,120]
[334466832,1723132274753,152.0,0.0002497,120]
[334466833,1723132275281,152.0,0.0002499,120]
[334466834,1723132275852,152.0,0.0002498,120]
[334466835,1723132276359,152.0,0.0002497,120]
[334466836,1723132277175,152.0,0.0002499,120]
[334466837,1723132277711,152.0,0.0002498,120]
[334466838,1723132278261,152.0,0.0002499,120]
[334466839,1723132278844,160.79,0.0002498,120]
[334466849,1723132400266,584.71,0.00024999,120]
[334466850,1723132400646,584.71,0.00025821,120]
[334466851,1723132400898,584.71,0.00026643,120]
[334466852,1723132601011,500.0,0.00027,120]
[334466853,1723132627362,500.0,0.0002699,120]
[334466973,1723133432403,-161.11,0.00013973,2]
[334466974,1723133432414,-3282.829945,0.000175,5]
[334466975,1723133432509,-943.65948572,0.000175,5]
[334466976,1723133432520,-465.0,0.000175,5]
[334466977,1723133432569,-499.60047608,0.000175,5]
[334466978,1723133432580,-5002.98372128,0.000175,5]
[334466979,1723133432590,-575.47783235,0.00019398,2]
[334466980,1723133432600,-155.0,0.00019725,2]
[334466981,1723133432609,-1402.49304813,0.0002012,2]
[334466982,1723133432618,-302.76,0.0002012,2]
[334466983,1723133432631,-1201.76,0.00020999,2]
[334466984,1723133432640,-623.43,0.00020999,2]
[334466985,1723133432650,-217.82,0.00021206,2]
[334466986,1723133432659,-152.72,0.0002161,2]
[334466987,1723133432669,-153.08,0.00021615,2]
[334466988,1723133432678,-599.07,0.00021615,2]
[334466989,1723133432689,-1313.08,0.00021617,2]
[334466990,1723133432700,-151.03,0.00021617,2]
[334466991,1723133432711,-371.95167885,0.00022,2]
[334466992,1723133432721,-150.0,0.0002269,2]
[334466993,1723133432731,-250.0,0.00022767,2]
[334466994,1723133432741,-599.6,0.00022805,2]
[334466995,1723133432750,-386.22,0.00022824,2]
[334466996,1723133432760,-800.0,0.00022847,2]
[334466997,1723133432771,-449.39,0.00022918,2]
[334466998,1723133432781,-295.0,0.00022926,2]
[334466999,1723133432791,-246.18,0.0002293,2]
[334467000,1723133432801,-150.0,0.00023296,2]
[334467001,1723133432810,-150.0,0.00023364,2]
[334467002,1723133432820,-243.78,0.00023364,2]
[334467003,1723133432830,-243.78,0.0002337,2]
[334467004,1723133432839,-243.78,0.00023377,2]
[334467005,1723133432849,-243.78,0.00023383,2]
[334467007,1723133432861,-200.0,0.00023385,2]
[334467009,1723133432870,-164.34,0.00023385,2]
[334467011,1723133432882,-243.78,0.00023389,2]
[334467013,1723133432891,-243.78,0.00023395,2]
[334467015,1723133432901,-243.78,0.00023401,2]
[334467017,1723133432911,-243.78,0.00023407,2]
[334467019,1723133432920,-243.78,0.00023413,2]
[334467020,1723133432930,-243.78,0.0002342,2]
[334467021,1723133432939,-243.78,0.00023426,2]
[334467022,1723133432949,-243.78,0.00023432,2]
[334467024,1723133432959,-243.78,0.00023438,2]
[334467026,1723133432969,-243.78,0.00023444,2]
[334467028,1723133432977,-243.78,0.0002345,2]
[334467030,1723133432987,-243.78,0.00023456,2]
[334467032,1723133432996,-243.78,0.00023463,2]
[334467034,1723133433005,-243.78,0.00023469,2]
[334467036,1723133433015,-217.82,0.0002347,2]
[334467038,1723133433024,-243.78,0.00023475,2]
[334467039,1723133433033,-243.78,0.00023481,2]
[334467040,1723133433043,-1931.37486418,0.00023555,2]
[334467041,1723133433051,-150.0,0.00023902,2]
[334467043,1723133433061,-799.0,0.00023917,2]
[334467045,1723133433070,-310.68,0.00024005,2]
[334467047,1723133433080,-310.68,0.00024011,2]
[334467049,1723133433090,-310.68,0.00024017,2]
[334467051,1723133433100,-310.68,0.00024024,2]
[334467053,1723133433111,-310.68,0.0002403,2]
[334467055,1723133433121,-310.68,0.00024036,2]
[334467057,1723133433138,-310.68,0.00024043,2]
[334467059,1723133433149,-310.68,0.00024049,2]
[334467062,1723133433366,-420.82,0.00024055,2]
[334467063,1723133433377,-420.82,0.00024055,2]
[334467064,1723133433394,-416.76,0.00024055,2]
[334467065,1723133433404,-310.68,0.00024055,2]
[334467066,1723133433414,-310.68,0.00024062,2]
[334467067,1723133433424,-310.68,0.00024068,2]
[334467068,1723133433434,-310.68,0.00024074,2]
[334467069,1723133433444,-310.68,0.00024081,2]
[334467070,1723133433454,-310.68,0.00024087,2]
[334467071,1723133433464,-310.68,0.00024093,2]
[334467072,1723133433475,-310.68,0.000241,2]
[334467073,1723133433485,-310.68,0.00024106,2]
[334467074,1723133433494,-310.68,0.00024112,2]
[334467075,1723133433504,-310.68,0.00024119,2]
[334467076,1723133433514,-310.68,0.00024125,2]
[334467077,1723133433524,-799.0,0.00024164,2]
[334467078,1723133433533,-426.15,0.00024192,2]
[334467079,1723133433543,-194.30464416,0.00024192,2]
[334467080,1723133433556,-336.43535584,0.00024192,2]
[334467081,1723133433565,-97.75625889,0.00024192,2]
[334467082,1723133433576,-52.24374111,0.00024192,2]
[334467083,1723133433586,-305.4,0.00024192,2]
[334467084,1723133433596,-214.48974295,0.00024192,2]
[334467095,1723133437777,-303.725138,0.00023284,2]
[334467096,1723133437788,-316.25025705,0.00024192,2]
[334467098,1723133437797,-426.15,0.00024192,2]
[334467100,1723133437807,-426.15,0.00024192,2]
[334467102,1723133437817,-530.74,0.00024192,2]
[334467104,1723133437826,-530.26,0.00024192,2]
[334467106,1723133437836,-426.15,0.00024192,2]
[334467108,1723133437845,-63.57460494,0.00024192,2]
[334467109,1723133437893,-362.57539506,0.00024192,2]
[334467110,1723133437902,-75.13403829,0.00024192,2]
[334467111,1723133437916,-401.99414869,0.00024192,2]
[334467112,1723133437935,-1.08181302,0.00024192,2]
[334467113,1723133437944,-150.0,0.000244,2]
[334467114,1723133437954,-305.74,0.000244,2]
[334467115,1723133437963,-612.07682919,0.0002441,2]
[334467116,1723133437981,-186.92317081,0.0002441,2]
[334467117,1723133437991,-469.0,0.000245,12]
[334467118,1723133438001,-150.0,0.00024509,2]
[334467119,1723133438010,-150.0,0.00024651,2]
[334467120,1723133438019,-799.0,0.00024657,2]
[334467121,1723133438029,-81.66742699,0.00024657,2]
[334467122,1723133438040,-550.68388037,0.00024657,2]
[334467123,1723133438049,-150.0,0.0002466,2]
[334467124,1723133438059,-150.0,0.00024666,2]
[334467125,1723133438068,-150.0,0.00024722,2]
[334467126,1723133438077,-180.79458329,0.00024729,2]
[334467127,1723133438087,-150.0,0.00024733,2]
[334467128,1723133438096,-150.0,0.00024742,2]
[334467129,1723133438105,-150.0,0.00024744,2]
[334467130,1723133438114,-150.0,0.00024756,2]
[334467131,1723133438124,-1033.1993,0.00024798,2]
[334467132,1723133438136,-1000.0,0.000248,2]
[334467133,1723133438145,-150.0,0.00024814,2]
[334467134,1723133438154,-150.0,0.00024818,2]
[334467135,1723133438163,-150.0,0.00024825,2]
[334467136,1723133438173,-150.0,0.00024839,2]
[334467137,1723133438183,-150.0,0.00024874,2]
[334467139,1723133438192,-150.0,0.00024876,2]
[334467141,1723133438201,-12373.6659,0.00024887,2]
[334467143,1723133438211,-320.57346097,0.0002489,2]
[334467145,1723133438220,-2546.8504,0.0002489,2]
[334467147,1723133438229,-4491.1038,0.0002489,2]
[334467148,1723133438240,-216.31395803,0.00024896,2]
[334467150,1723133438250,-5905.65838827,0.000249,2]
[334467152,1723133438261,-483.7655466,0.000249,2]
[334467154,1723133438273,-295.1000001,0.000249,2]
[334467162,1723133438332,-815.47606503,0.000249,2]
[334467164,1723133438341,-1000.0,0.000249,2]
[334467166,1723133438351,-357.80807275,0.000249,2]
[334467168,1723133438362,-2642.19192725,0.000249,2]
[334467170,1723133438371,-5716.6527,0.000249,2]
[334467172,1723133438380,-368.04,0.000249,31]
[334467174,1723133438396,-368.04,0.000249,31]
[334467176,1723133438412,-368.04,0.000249,31]
[334467178,1723133438421,-368.04,0.000249,31]
[334467180,1723133438430,-368.04,0.000249,31]
[334467182,1723133438439,-368.04,0.000249,31]
[334467184,1723133438449,-368.04,0.000249,31]
[334467185,1723133438458,-368.04,0.000249,31]
[334467187,1723133438468,-368.04,0.000249,31]
[334467189,1723133438477,-368.04,0.000249,31]
[334467191,1723133438487,-368.04,0.000249,31]
[334467193,1723133438497,-368.04,0.000249,31]
[334467195,1723133438506,-368.04,0.000249,31]
[334467197,1723133438515,-368.04,0.000249,31]
[334467199,1723133438524,-368.04,0.000249,31]
[334467201,1723133438533,-368.04,0.000249,31]
[334467203,1723133438542,-368.04,0.000249,31]
[334467205,1723133438552,-368.04,0.000249,31]
[334467207,1723133438561,-368.04,0.000249,31]
[334467209,1723133438570,-368.04,0.000249,31]
[334467211,1723133438579,-175.10094526,0.000249,2]
[334467212,1723133438588,-3466.98531165,0.000249,2]
[334467214,1723133438598,-320.57346097,0.000249,2]
[334467216,1723133438607,-545.13431228,0.000249,2]
[334467218,1723133438616,-150.0,0.00024902,2]
[334467220,1723133438625,-799.0,0.00024904,2]
[334467222,1723133438638,-42370.01635,0.0002498,5]
[334467224,1723133438650,-494.01698692,0.0002498,5]
[334467228,1723133438673,-18014.20423162,0.0002498,5]
[334467233,1723133438717,-6501.04133555,0.0002498,5]
[334467235,1723133438729,-771.07115909,0.0002498,5]
[334467364,1723133441980,-3328.80000001,0.0002498,5]
[334467366,1723133441992,-560.3599244,0.0002498,5]
[334467368,1723133442003,-1214.66454658,0.0002498,5]
[334467374,1723133442093,-668.34442602,0.0002498,5]
[334467375,1723133442104,-829.53372694,0.0002498,5]
[334467376,1723133442115,-379.92281536,0.0002498,5]
[334467377,1723133442205,-23313.32003658,0.0002498,5]
[334467378,1723133442326,-1125.95213341,0.0002498,5]
[334467379,1723133442339,-3100.09378254,0.0002498,5]
[334467380,1723133442351,-614.3671909,0.0002498,5]
[334467381,1723133442363,-6169.39550441,0.0002498,5]
[334467382,1723133442374,-1931.68728118,0.0002498,5]
[334467466,1723133443083,-377.5996398,0.0002498,5]
[334467468,1723133443094,-14700.83896024,0.0002498,5]
[334467470,1723133443105,-1381.28,0.0002498,5]
[334467473,1723133443120,-1839.65240445,0.0002498,5]
[334467475,1723133443129,-275.48073339,0.00024987,5]
[334467477,1723133443144,-1951.24999987,0.00024987,5]
[334467479,1723133443156,-826.25901472,0.00024987,5]
[334467481,1723133443168,-5592.75441442,0.00024987,5]
[334467483,1723133443178,-459.91429,0.00024987,2]
[334467485,1723133443188,-813.84834541,0.00024987,2]
[334467487,1723133443197,-500.0,0.00024989,2]
[334467489,1723133443207,-500.0,0.00024989,2]
[334467491,1723133443217,-271.94721888,0.00024989,2]
[334467493,1723133443226,-15018.01544404,0.00024989,5]
[334467497,1723133443246,-532.5,0.00024989,5]
[334467499,1723133443258,-3153.77131732,0.00024989,5]
[334467660,1723133445946,-155.0,0.00019599,2]
[334467661,1723133445956,-294.47,0.000249,31]
[334467662,1723133445965,-212.26480014,0.000249,31]
[334467663,1723133445977,-82.20519986,0.000249,31]
[334467664,1723133445987,-294.47,0.000249,31]
[334467665,1723133445997,-40.63881851,0.000249,31]
[334467666,1723133446012,-253.83118149,0.000249,31]
[334467667,1723133446022,-294.47,0.000249,31]
[334467668,1723133446032,-294.47,0.000249,31]
[334467669,1723133446042,-11063.82881852,0.00024989,5]
[334467670,1723133446053,-5917.9735355,0.00024989,5]
[334467671,1723133446065,-3573.54,0.00024989,5]
[334467672,1723133446084,-294.47,0.000249,31]
[334467673,1723133446094,-28981.51271297,0.00024989,5]
[334467674,1723133446106,-3888.80813399,0.00024989,5]
[334467675,1723133446131,-294.47,0.000249,31]
[334467676,1723133446142,-5296.50851357,0.00024989,5]
[334467677,1723133446158,-795.94378338,0.00024989,2]
[334467678,1723133446168,-51874.4649744,0.0002499,5]
[334467679,1723133446177,-52877.9572142,0.0002499,5]
[334467680,1723133446187,-151.0,0.0002499,7]
[334467681,1723133446196,-151.0,0.0002499,7]
[334467682,1723133446206,-151.0,0.0002499,7]
[334467683,1723133446215,-151.0,0.0002499,7]
[334467684,1723133446224,-151.0,0.0002499,7]
[334467685,1723133446234,-69165.9532992,0.0002499,5]
[334467686,1723133446244,-153380.9207144,0.0002499,5]
[334467687,1723133446257,-100433.2739136,0.0002499,5]
[334467688,1723133446267,-300.0,0.00024996,2]
[334467689,1723133446276,-853.1682339,0.00024997,2]
[334467690,1723133446286,-853.1682339,0.00024997,2]
[334467691,1723133446295,-853.1682339,0.00024997,2]
[334467692,1723133446305,-853.1682339,0.00024997,2]
[334467693,1723133446314,-853.1682339,0.00024997,2]
[334467694,1723133446324,-853.1682339,0.00024997,2]
[334467695,1723133446333,-792.8208033,0.00024997,2]
[334467696,1723133446344,-792.8208033,0.00024997,2]
[334467697,1723133446353,-792.8208033,0.00024997,2]
[334467698,1723133446363,-792.8208033,0.00024997,2]
[334467699,1723133446373,-792.8208033,0.00024997,2]
[334467700,1723133446383,-792.8208033,0.00024997,2]
[334467701,1723133446395,-438.4461012,0.00024997,2]
[334467702,1723133446406,-438.4461012,0.00024997,2]
[334467703,1723133446416,-438.4461012,0.00024997,2]
[334467704,1723133446426,-438.4461012,0.00024997,2]
[334467705,1723133446435,-438.4461012,0.00024997,2]
[334467706,1723133446445,-438.4461012,0.00024997,2]
[334467707,1723133446455,-6510.78676328,0.00024997,2]
[334467708,1723133446464,-280.0,0.00024998,10]
[334467709,1723133446474,-300.0,0.00024999,2]
[334467710,1723133446483,-300.0,0.00024999,2]
[334467711,1723133446492,-300.0,0.00024999,2]
[334467712,1723133446501,-300.0,0.00024999,2]
[334467713,1723133446511,-410.0,0.00025,3]
[334467714,1723133446520,-5107.17294316,0.00025,2]
[334467715,1723133446529,-110071.13460148,0.00025,9]
[334467716,1723133446538,-78949.89491148,0.00025,2]
[334467717,1723133446561,-294.47,0.000249,31]
[334467718,1723133446570,-294.47,0.000249,31]
[334467719,1723133446580,-656.9760301,0.00025,2]
[334467720,1723133446591,-3153.88015056,0.00025,2]
[334467721,1723133446602,-2532.35246451,0.00025,2]
[334467722,1723133446662,-945.0,0.00025,2]
[334467763,1723134336204,-145999.45665367,0.00011,2]
[334467802,1723134565348,500.0,0.00027,120]
[334467827,1723134632042,-586.0,0.00010899,2]
[334467828,1723134632052,-740.04118843,0.00010899,2]
[334467830,1723134632062,-292.0,0.00010999,2]
[334467831,1723134632079,-150.0,0.00010999,2]
[334467833,1723134632089,-300.0,0.00010999,2]
[334467835,1723134632099,-10.83625156,0.00011,2]
[334467841,1723134632143,-553.0,0.00011,2]
[334467842,1723134632221,-885.48301631,0.00011,2]
[334467843,1723134632230,-290.0,0.00012087,2]
[334467844,1723134632241,-2438.52043949,0.00013297,2]
[334467845,1723134632250,-300.0,0.00013333,2]
[334467846,1723134632260,-294.94,0.00013973,2]
[334467847,1723134632270,-440.97169824,0.00015,7]
[334467848,1723134632279,-1000.0,0.00015507,2]
[334467849,1723134632288,-3344.0,0.000158,3]
[334467850,1723134632297,-150.99,0.000158,2]
[334467851,1723134632307,-150.99,0.000158,2]
[334467852,1723134632317,-150.99,0.0001726,2]
[334467853,1723134632334,-860.49,0.0001726,2]
[334467854,1723134632344,-1211.17918123,0.00017728,2]
[334467855,1723134632356,-455.63081877,0.00017728,2]
[334467856,1723134632366,-1469.11,0.00017728,2]
[334467857,1723134632375,-438.08,0.00017728,2]
[334467858,1723134632386,-258.87,0.00018282,2]
[334467859,1723134632395,-215.20918122,0.0002,30]
[334467860,1723134632407,-374.47581878,0.0002,30]
[334467861,1723134632417,-451.30303931,0.00020144,2]
[334467862,1723134632429,-68.23696069,0.00020144,2]
[334467863,1723134632439,-683.26256191,0.000202,5]
[334467864,1723134632451,-182.73743809,0.000202,5]
[334467865,1723134632461,-365.42577775,0.00020439,5]
[334467866,1723134632470,-294.94,0.00020447,2]
[334467867,1723134632479,-258.87,0.00020546,2]
[334467868,1723134632488,-590.27,0.00020695,2]
[334467869,1723134632497,-22.75678172,0.00020704,2]
[334467888,1723134638043,-159.82321828,0.00020704,2]
[334467889,1723134638053,-603.1689,0.00020794,2]
[334467890,1723134638062,-500.0,0.00021398,2]
[334467891,1723134638074,-371.95167885,0.00022,2]
[334467892,1723134638083,-3289.0,0.0002214,2]
[334467893,1723134638092,-414.996,0.0002214,2]
[334467894,1723134638101,-150.0,0.0002214,2]
[334467895,1723134638110,-544.73,0.0002214,2]
[334467896,1723134638121,-2222.922,0.0002214,2]
[334467897,1723134638130,-150.0,0.0002214,2]
[334467898,1723134638139,-920.731,0.0002214,2]
[334467899,1723134638151,-8036.207,0.0002214,2]
[334467900,1723134638161,-150.0,0.00022488,2]
[334467901,1723134638171,-200.0,0.0002255,2]
[334467902,1723134638180,-200.0,0.0002255,2]
[334467903,1723134638190,-150.0,0.00022755,2]
[334467904,1723134638199,-640.0,0.00022793,2]
[334467905,1723134638209,-660.88,0.00022803,2]
[334467906,1723134638219,-258.87,0.0002281,2]
[334467907,1723134638229,-250.0,0.00022819,2]
[334467908,1723134638238,-192.45,0.00022834,2]
[334467909,1723134638248,-360.0,0.00022866,2]
[334467910,1723134638258,-4829.27020291,0.00022867,2]
[334467911,1723134638270,-8931.86912955,0.00022867,2]
[334467912,1723134638281,-10138.86066754,0.00022867,2]
[334467913,1723134638291,-1053.91,0.0002289,2]
[334467914,1723134638301,-245.83,0.00023159,2]
[334467915,1723134638311,-295.89,0.00023206,2]
[334467916,1723134638321,-150.0,0.00023363,2]
[334467917,1723134638333,-1256.20340956,0.0002388,2]
[334467918,1723134638343,-14962.96234,0.0002388,2]
[334467919,1723134638355,-310.85845737,0.0002388,2]
[334467920,1723134638366,-21840.0,0.0002388,2]
[334467921,1723134638377,-1266.25068988,0.0002388,2]
[334467922,1723134638388,-464.27999997,0.0002388,2]
[334467923,1723134638399,-1386.29309608,0.0002388,2]
[334467924,1723134638418,-162.12,0.00022286,2]
[334467926,1723134638428,-378.53357155,0.0002388,2]
[334467928,1723134638439,-4295.9824655,0.0002388,2]
[334467930,1723134638450,-2939.9999999,0.0002388,2]
[334467933,1723134638461,-16254.34948684,0.0002388,2]
[334467935,1723134638472,-762.69359376,0.0002388,2]
[334467937,1723134638487,-18263.915,0.0002388,2]
[334467953,1723134638622,162.12,0.00026,120]
[334468218,1723134641924,-250.0,0.00023737,2]
[334468219,1723134641934,-512.36167199,0.0002388,2]
[334468220,1723134642007,-78665.99939554,0.0002388,2]
[334468221,1723134642020,-10066.1744346,0.0002388,2]
[334468222,1723134642033,-643.23488832,0.0002388,2]
[334468223,1723134642044,-1436.10128334,0.0002388,2]
[334468224,1723134642055,-8357.73778322,0.0002388,2]
[334468225,1723134642069,-546.30529662,0.0002388,2]
[334468226,1723134642087,-1622.32943194,0.0002388,2]
[334468227,1723134642098,-300.0,0.000239,8]
[334468228,1723134642109,-150.0,0.00023971,2]
[334468229,1723134642119,-700.0,0.00024,8]
[334468230,1723134642128,-1000.0,0.000241,8]
[334468231,1723134642138,-1034.47056806,0.00024124,2]
[334468232,1723134642150,-504.98169967,0.00024124,2]
[334468233,1723134642163,-391.92259645,0.00024124,2]
[334468234,1723134642173,-247.29790993,0.00024192,2]
[334468235,1723134642185,-298.52209007,0.00024192,2]
[334468236,1723134642194,-50.31698043,0.000242,8]
[334468237,1723134642206,-258.585,0.000242,8]
[334468238,1723134642218,-819.45729106,0.000242,8]
[334468239,1723134642230,-271.64072851,0.000242,8]
[334468240,1723134642240,-294.54815262,0.000243,8]
[334468241,1723134642251,-362.31538158,0.000243,8]
[334468242,1723134642263,-261.51042196,0.000243,8]
[334468243,1723134642275,-881.62604384,0.000243,8]
[334468244,1723134642284,-313.06,0.000244,2]
[334468245,1723134642294,-300.0,0.000244,8]
[334468246,1723134642303,-150.0,0.00024407,2]
[334468247,1723134642313,-150.0,0.00024407,2]
[334468248,1723134642331,-150.0,0.00024407,2]
[334468250,1723134642344,-150.0,0.00024407,2]
[334468251,1723134642353,-150.0,0.00024407,2]
[334468253,1723134642362,-313.94,0.00024407,2]
[334468255,1723134642372,-300.0,0.000245,8]
[334468257,1723134642382,-150.0,0.00024575,2]
[334468259,1723134642391,-150.0,0.00024579,2]
[334468261,1723134642400,-150.0,0.00024594,2]
[334468263,1723134642410,-300.0,0.000246,8]
[334468265,1723134642419,-150.0,0.00024603,2]
[334468267,1723134642428,-150.0,0.00024619,2]
[334468268,1723134642437,-150.0,0.0002462,2]
[334468270,1723134642446,-150.0,0.00024624,2]
[334468272,1723134642456,-150.0,0.00024626,2]
[334468274,1723134642465,-324.165,0.00024641,2]
[334468276,1723134642475,-150.0,0.00024643,2]
[334468278,1723134642485,-150.0,0.00024651,2]
[334468280,1723134642495,-150.0,0.00024653,2]
[334468281,1723134642505,-150.0,0.00024663,2]
[334468283,1723134642514,-150.0,0.00024695,2]
[334468285,1723134642523,-1420.0,0.000247,2]
[334468287,1723134642532,-300.0,0.000247,9]
[334468289,1723134642542,-150.0,0.00024703,2]
[334468291,1723134642552,-150.0,0.00024704,2]
[334468293,1723134642561,-150.0,0.00024711,2]
[334468295,1723134642571,-150.0,0.00024714,2]
[334468296,1723134642587,-150.0,0.00024742,2]
[334468297,1723134642597,-150.0,0.00024745,2]
[334468298,1723134642606,-150.0,0.00024749,2]
[334468299,1723134642615,-150.0,0.00024749,2]
[334468300,1723134642625,-691.1802,0.0002475,2]
[334468301,1723134642634,-150.0,0.00024751,2]
[334468302,1723134642643,-150.0,0.00024758,2]
[334468303,1723134642653,-150.0,0.00024764,2]
[334468304,1723134642662,-150.0,0.00024766,2]
[334468305,1723134642673,-150.0,0.0002477,2]
[334468306,1723134642682,-150.0,0.00024773,2]
[334468307,1723134642691,-150.0,0.00024773,2]
[334468308,1723134642701,-150.0,0.00024776,2]
[334468309,1723134642710,-150.0,0.0002478,2]
[334468311,1723134642719,-155.94350914,0.0002478,2]
[334468313,1723134642728,-150.0,0.00024788,2]
[334468315,1723134642736,-170.90615667,0.000248,2]
[334468316,1723134642745,-909.0,0.000248,9]
[334468317,1723134642755,-150.0,0.00024804,2]
[334468319,1723134642765,-150.0,0.00024815,2]
[334468320,1723134642774,-170.90615663,0.00024817,2]
[334468322,1723134642783,-150.0,0.00024817,2]
[334468324,1723134642793,-150.0,0.00024827,2]
[334468326,1723134642802,-150.0,0.00024831,2]
[334468328,1723134642812,-170.90615663,0.00024833,2]
[334468330,1723134642821,-150.0,0.00024834,2]
[334468332,1723134642835,-170.90615663,0.0002485,2]
[334468336,1723134642845,-170.90615663,0.00024867,2]
[334468339,1723134642854,-883.21090761,0.0002487,5]
[334468341,1723134642863,-150.0,0.00024872,2]
[334468344,1723134642874,-1949.09526943,0.00024879,2]
[334468376,1723134643009,-317.83516155,0.0002488,2]
[334468379,1723134643059,-3199.7616,0.0002488,2]
[334468381,1723134643069,-29489.6287,0.0002488,2]
[334468384,1723134643097,-5030.8392,0.0002488,2]
[334468386,1723134643106,-170.90615663,0.00024883,2]
[334468388,1723134643116,-150.0,0.00024886,2]
[334468389,1723134643127,-688.22628917,0.00024889,2]
[334468390,1723134643141,-3532.84363044,0.0002489,5]
[334468391,1723134643151,-305.9417,0.0002489,2]
[334468392,1723134643161,-2224.2235,0.0002489,2]
[334468393,1723134643171,-150.0,0.00024893,2]
[334468394,1723134643181,-688.22628916,0.00024895,2]
[334468395,1723134643191,-150.0,0.00024896,2]
[334468396,1723134643200,-702.26095193,0.00024899,2]
[334468397,1723134643210,-1000.0,0.000249,2]
[334468399,1723134643220,-5716.6527,0.000249,2]
[334468401,1723134643229,-6806.8831,0.000249,2]
[334468403,1723134643238,-1136.2729,0.000249,2]
[334468405,1723134643248,-1416.6197,0.000249,2]
[334468407,1723134643258,-3000.0,0.000249,2]
[334468409,1723134643268,-265.04,0.000249,31]
[334468411,1723134643277,-265.04,0.000249,31]
[334468413,1723134643287,-265.04,0.000249,31]
[334468414,1723134643296,-265.04,0.000249,31]
[334468416,1723134643306,-265.04,0.000249,31]
[334468418,1723134643316,-265.04,0.000249,31]
[334468420,1723134643330,-265.04,0.000249,31]
[334468422,1723134643339,-265.04,0.000249,31]
[334468424,1723134643349,-265.04,0.000249,31]
[334468426,1723134643358,-265.04,0.000249,31]
[334468428,1723134643368,-265.04,0.000249,31]
[334468430,1723134643378,-265.04,0.000249,31]
[334468432,1723134643387,-265.04,0.000249,31]
[334468434,1723134643396,-265.04,0.000249,31]
[334468436,1723134643405,-265.04,0.000249,31]
[334468438,1723134643414,-265.04,0.000249,31]
[334468440,1723134643424,-265.04,0.000249,31]
[334468442,1723134643434,-265.04,0.000249,31]
[334468444,1723134643443,-265.04,0.000249,31]
[334468446,1723134643456,-265.04,0.000249,31]
[334468448,1723134643467,-170.90615663,0.000249,2]
[334468450,1723134643477,-7500.0,0.000249,2]
[334468452,1723134643486,-155.94350913,0.000249,2]
[334468454,1723134643496,-688.22628916,0.000249,2]
[334468456,1723134643506,-180.0,0.0002493,2]
[334468458,1723134643515,-150.0,0.00024935,2]
[334468460,1723134643524,-4416.05453805,0.0002497,5]
[334468462,1723134643533,-200.0,0.00024973,2]
[334468464,1723134643543,-7065.68726088,0.00024978,5]
[334468466,1723134643552,-17372.2006294,0.00024978,5]
[334468468,1723134643561,-8686.10031472,0.00024979,5]
[334468470,1723134643571,-151.0,0.00024979,7]
[334468472,1723134643583,-175.30532,0.00024979,7]
[334468474,1723134643592,-795.94378338,0.00024979,2]
[334468476,1723134643602,-17372.2006294,0.0002498,5]